[Event "*** Titled Tuesday Blitz"]
[Site "Chess.com"]
[Date "2020.05.12"]
[Round "1"]
[White "12teen"]
[Black "mc4chess"]
[Result "1-0"]
[WhiteElo "2775"]
[BlackElo "2411"]
[TimeControl "180+1"]
[EndTime "10:06:16 PDT"]
[Termination "12teen won on time"]

1. e4 {[%clk 0:02:57.9]} 1... c5 {[%clk 0:02:58.3]} 2. Nc3 {[%clk 0:02:57.8]}
2... e6 {[%clk 0:02:46.2]} 3. f4 {[%clk 0:02:52.2]} 3... a6 {[%clk 0:02:45.4]}
4. g3 {[%clk 0:02:51.6]} 4... b5 {[%clk 0:02:45]} 5. Bg2 {[%clk 0:02:51.6]} 5...
Bb7 {[%clk 0:02:44.9]} 6. d3 {[%clk 0:02:51.5]} 6... d5 {[%clk 0:02:43.6]} 7. e5
{[%clk 0:02:51.4]} 7... h5 {[%clk 0:02:40.7]} 8. Nf3 {[%clk 0:02:50.8]} 8... h4
{[%clk 0:02:35.7]} 9. Nxh4 {[%clk 0:02:42.7]} 9... Rxh4 {[%clk 0:02:31.1]} 10.
gxh4 {[%clk 0:02:28.2]} 10... Qxh4+ {[%clk 0:02:32]} 11. Kf1 {[%clk 0:02:27.9]}
11... Nh6 {[%clk 0:02:29]} 12. Qe1 {[%clk 0:02:21.5]} 12... Qd8 {[%clk
0:02:20.1]} 13. Ne2 {[%clk 0:02:19.8]} 13... Nc6 {[%clk 0:02:18.4]} 14. c3
{[%clk 0:02:14.8]} 14... Be7 {[%clk 0:02:09.7]} 15. Qf2 {[%clk 0:02:11.4]} 15...
Nf5 {[%clk 0:02:03.3]} 16. Ng3 {[%clk 0:02:09.7]} 16... Nh4 {[%clk 0:01:49.8]}
17. d4 {[%clk 0:02:01.6]} 17... cxd4 {[%clk 0:01:42]} 18. cxd4 {[%clk
0:02:02.5]} 18... Qb6 {[%clk 0:01:32]} 19. Be3 {[%clk 0:02:01.9]} 19... Rc8
{[%clk 0:01:25.9]} 20. a3 {[%clk 0:02:00.4]} 20... Na5 {[%clk 0:01:21.7]} 21.
Nh5 {[%clk 0:01:49.7]} 21... g6 {[%clk 0:01:18.6]} 22. Nf6+ {[%clk 0:01:49.9]}
22... Bxf6 {[%clk 0:01:17.6]} 23. exf6 {[%clk 0:01:50.8]} 23... Nxg2 {[%clk
0:01:15.7]} 24. Kxg2 {[%clk 0:01:50.1]} 24... Nb3 {[%clk 0:00:52.8]} 25. Rad1
{[%clk 0:01:46.6]} 25... b4 {[%clk 0:00:39.8]} 26. axb4 {[%clk 0:01:20.1]} 26...
Qxb4 {[%clk 0:00:35.1]} 27. Rhe1 {[%clk 0:01:19.5]} 27... a5 {[%clk 0:00:26.2]}
28. h4 {[%clk 0:01:17.7]} 28... Ba6 {[%clk 0:00:17]} 29. h5 {[%clk 0:01:17.9]}
29... gxh5 {[%clk 0:00:14.5]} 30. f5 {[%clk 0:01:18.4]} 30... Kd7 {[%clk
0:00:12.6]} 31. fxe6+ {[%clk 0:01:18.8]} 31... fxe6 {[%clk 0:00:13.5]} 32. f7
{[%clk 0:01:18.5]} 32... Qe7 {[%clk 0:00:10.4]} 33. Bh6 {[%clk 0:01:16]} 33...
Rf8 {[%clk 0:00:01.7]} 34. Bxf8 {[%clk 0:01:15.7]} 34... Qxf8 {[%clk 0:00:02.6]}
35. Qf6 {[%clk 0:01:15.3]} 1-0

[Event "*** Titled Tuesday Blitz"]
[Site "Chess.com"]
[Date "2020.05.12"]
[Round "1"]
[White "ulkaf961"]
[Black "Unknown_IM"]
[Result "0-1"]
[WhiteElo "2171"]
[BlackElo "2524"]
[TimeControl "180+1"]
[EndTime "10:06:17 PDT"]
[Termination "Unknown_IM won by resignation"]

1. e4 {[%clk 0:03:00.4]} 1... e5 {[%clk 0:02:57.2]} 2. Nf3 {[%clk 0:02:59.5]}
2... Nc6 {[%clk 0:02:54.7]} 3. Bb5 {[%clk 0:02:58.7]} 3... a6 {[%clk 0:02:54.7]}
4. Ba4 {[%clk 0:02:58.2]} 4... Nge7 {[%clk 0:02:55.2]} 5. c3 {[%clk 0:02:54.3]}
5... g6 {[%clk 0:02:54.1]} 6. d4 {[%clk 0:02:51.2]} 6... exd4 {[%clk 0:02:54.2]}
7. cxd4 {[%clk 0:02:50.5]} 7... b5 {[%clk 0:02:54.9]} 8. Bb3 {[%clk 0:02:47.1]}
8... Bg7 {[%clk 0:02:54.7]} 9. d5 {[%clk 0:02:46.3]} 9... Na5 {[%clk 0:02:54.2]}
10. Bd2 {[%clk 0:02:46.2]} 10... Nxb3 {[%clk 0:02:44.9]} 11. Qxb3 {[%clk
0:02:45.4]} 11... c5 {[%clk 0:02:44.7]} 12. Bc3 {[%clk 0:02:35.2]} 12... O-O
{[%clk 0:02:43.3]} 13. O-O {[%clk 0:02:31.1]} 13... d6 {[%clk 0:02:42.8]} 14. a4
{[%clk 0:02:25.1]} 14... Bd7 {[%clk 0:02:35.1]} 15. Bxg7 {[%clk 0:02:17.3]}
15... Kxg7 {[%clk 0:02:34]} 16. Qc3+ {[%clk 0:02:17.9]} 16... Kg8 {[%clk
0:02:34.1]} 17. Nbd2 {[%clk 0:02:18.6]} 17... f5 {[%clk 0:02:33.1]} 18. Rfe1
{[%clk 0:02:07.5]} 18... fxe4 {[%clk 0:02:25.4]} 19. Nxe4 {[%clk 0:02:05.7]}
19... Nxd5 {[%clk 0:02:25.2]} 20. Qb3 {[%clk 0:01:56.6]} 20... c4 {[%clk
0:02:24.2]} 21. Qd1 {[%clk 0:01:55.3]} 21... Bc6 {[%clk 0:02:12.5]} 22. Nd4
{[%clk 0:01:51]} 22... Qd7 {[%clk 0:02:11]} 23. axb5 {[%clk 0:01:32.8]} 23...
axb5 {[%clk 0:02:10.4]} 24. Nxc6 {[%clk 0:01:32.5]} 24... Qxc6 {[%clk
0:02:09.2]} 25. Rxa8 {[%clk 0:01:31.3]} 25... Qxa8 {[%clk 0:02:06.6]} 26. Nxd6
{[%clk 0:01:29.6]} 26... Nf4 {[%clk 0:02:03.5]} 27. Qg4 {[%clk 0:01:29]} 27...
Qd5 {[%clk 0:01:55.9]} 28. Nc8 {[%clk 0:01:06.4]} 28... Qd4 {[%clk 0:01:23.7]}
29. Ne7+ {[%clk 0:01:04.1]} 29... Kg7 {[%clk 0:01:20.7]} 30. Rd1 {[%clk
0:00:27.8]} 30... Qe4 {[%clk 0:01:14.5]} 31. Qg5 {[%clk 0:00:16.3]} 31... h6
{[%clk 0:01:06.1]} 32. Nf5+ {[%clk 0:00:14.3]} 32... Qxf5 {[%clk 0:01:02.9]} 0-1

[Event "*** Titled Tuesday Blitz"]
[Site "Chess.com"]
[Date "2020.05.12"]
[Round "1"]
[White "peixe64"]
[Black "cukus"]
[Result "1-0"]
[WhiteElo "2179"]
[BlackElo "2502"]
[TimeControl "180+1"]
[EndTime "10:06:18 PDT"]
[Termination "peixe64 won by checkmate"]

1. d4 {[%clk 0:03:00.9]} 1... Nf6 {[%clk 0:02:56.4]} 2. c4 {[%clk 0:03:01.1]}
2... g6 {[%clk 0:02:52]} 3. Nc3 {[%clk 0:03:01]} 3... d5 {[%clk 0:02:51.9]} 4.
cxd5 {[%clk 0:02:54.3]} 4... Nxd5 {[%clk 0:02:52.8]} 5. e4 {[%clk 0:02:54.7]}
5... Nxc3 {[%clk 0:02:50.8]} 6. bxc3 {[%clk 0:02:55.6]} 6... Bg7 {[%clk
0:02:50.9]} 7. Bc4 {[%clk 0:02:54.2]} 7... c5 {[%clk 0:02:51]} 8. Ne2 {[%clk
0:02:54.3]} 8... O-O {[%clk 0:02:43.9]} 9. O-O {[%clk 0:02:52.2]} 9... Nc6
{[%clk 0:02:43.5]} 10. Be3 {[%clk 0:02:48.2]} 10... Qc7 {[%clk 0:02:41.2]} 11.
Qd2 {[%clk 0:02:14.2]} 11... b6 {[%clk 0:02:40.3]} 12. Rac1 {[%clk 0:02:09.9]}
12... Bb7 {[%clk 0:02:39.5]} 13. Bh6 {[%clk 0:01:59.3]} 13... e6 {[%clk
0:02:35.7]} 14. Bxg7 {[%clk 0:01:58.8]} 14... Kxg7 {[%clk 0:02:36]} 15. Qe3
{[%clk 0:01:57.5]} 15... Rad8 {[%clk 0:02:33.5]} 16. f4 {[%clk 0:01:56.2]} 16...
f5 {[%clk 0:02:25.6]} 17. Bxe6 {[%clk 0:01:45.9]} 17... fxe4 {[%clk 0:02:17.3]}
18. d5 {[%clk 0:01:45.7]} 18... Ne7 {[%clk 0:02:12]} 19. c4 {[%clk 0:01:46]}
19... Bc8 {[%clk 0:01:40.3]} 20. Qc3+ {[%clk 0:01:36.3]} 20... Kh6 {[%clk
0:01:08.1]} 21. g4 {[%clk 0:01:08.6]} 21... g5 {[%clk 0:00:28.9]} 22. fxg5+
{[%clk 0:00:59.9]} 22... Kxg5 {[%clk 0:00:26]} 23. Qg7+ {[%clk 0:00:53.8]} 23...
Ng6 {[%clk 0:00:23.1]} 24. h4+ {[%clk 0:00:45.8]} 24... Kxh4 {[%clk 0:00:14.4]}
25. Qh6# {[%clk 0:00:43]} 1-0

[Event "*** Titled Tuesday Blitz"]
[Site "Chess.com"]
[Date "2020.05.12"]
[Round "1"]
[White "Dixit_Nikhil"]
[Black "CraiggoryC"]
[Result "1-0"]
[WhiteElo "2505"]
[BlackElo "2104"]
[TimeControl "180+1"]
[EndTime "10:06:22 PDT"]
[Termination "Dixit_Nikhil won by resignation"]

1. e4 {[%clk 0:03:00.4]} 1... e6 {[%clk 0:02:49.7]} 2. Nf3 {[%clk 0:02:58.6]}
2... d5 {[%clk 0:02:50]} 3. Nc3 {[%clk 0:02:58.5]} 3... Nf6 {[%clk 0:02:49.3]}
4. e5 {[%clk 0:02:57.2]} 4... Nfd7 {[%clk 0:02:49.8]} 5. d4 {[%clk 0:02:56.3]}
5... c5 {[%clk 0:02:50.3]} 6. dxc5 {[%clk 0:02:57]} 6... Nc6 {[%clk 0:02:50.7]}
7. Bf4 {[%clk 0:02:57.5]} 7... Bxc5 {[%clk 0:02:49.4]} 8. Bd3 {[%clk 0:02:57.9]}
8... f6 {[%clk 0:02:47.7]} 9. exf6 {[%clk 0:02:57.3]} 9... Nxf6 {[%clk
0:02:47.5]} 10. O-O {[%clk 0:02:58]} 10... O-O {[%clk 0:02:47.1]} 11. Bg3 {[%clk
0:02:54.8]} 11... Bd7 {[%clk 0:02:44.7]} 12. Qe2 {[%clk 0:02:53.4]} 12... a6
{[%clk 0:02:42.1]} 13. Ne5 {[%clk 0:02:50.9]} 13... Nxe5 {[%clk 0:02:33.9]} 14.
Bxe5 {[%clk 0:02:51.8]} 14... b5 {[%clk 0:02:34.2]} 15. a3 {[%clk 0:02:49.7]}
15... Qb6 {[%clk 0:02:24.6]} 16. b4 {[%clk 0:02:48.2]} 16... Bd4 {[%clk
0:02:20.2]} 17. a4 {[%clk 0:02:47.2]} 17... Rac8 {[%clk 0:02:00.7]} 18. Ra3
{[%clk 0:02:37.9]} 18... bxa4 {[%clk 0:01:33]} 19. Bxd4 {[%clk 0:02:23.6]} 19...
Qxd4 {[%clk 0:01:29.4]} 20. Nxa4 {[%clk 0:02:23.6]} 20... Qxb4 {[%clk
0:01:17.4]} 21. Rfa1 {[%clk 0:02:22.9]} 21... Bb5 {[%clk 0:01:12.1]} 22. Qxe6+
{[%clk 0:02:19.9]} 22... Kh8 {[%clk 0:01:12]} 23. Qe1 {[%clk 0:02:04.5]} 23...
Qxe1+ {[%clk 0:01:00.3]} 24. Rxe1 {[%clk 0:02:05.4]} 24... Bxd3 {[%clk
0:00:57.9]} 25. cxd3 {[%clk 0:02:03.7]} 25... Rfe8 {[%clk 0:00:55.9]} 26. Rxe8+
{[%clk 0:02:01.5]} 26... Nxe8 {[%clk 0:00:48.9]} 27. Kf1 {[%clk 0:02:02.4]}
27... Kg8 {[%clk 0:00:47.2]} 28. Rc3 {[%clk 0:02:00.8]} 28... Rxc3 {[%clk
0:00:43.1]} 29. Nxc3 {[%clk 0:02:01.7]} 29... Nc7 {[%clk 0:00:43.1]} 30. d4
{[%clk 0:02:01.3]} 30... Kf7 {[%clk 0:00:42.9]} 31. Ke2 {[%clk 0:02:01]} 31...
Ke6 {[%clk 0:00:43.1]} 32. Kd3 {[%clk 0:02:01.2]} 32... Nb5 {[%clk 0:00:43.1]}
33. Nxb5 {[%clk 0:01:58.6]} 33... axb5 {[%clk 0:00:43.2]} 34. Kc3 {[%clk
0:01:59.5]} 34... Kf5 {[%clk 0:00:41.8]} 35. Kd3 {[%clk 0:01:46.7]} 35... g5
{[%clk 0:00:39.8]} 36. f3 {[%clk 0:01:42.8]} 36... h5 {[%clk 0:00:39.2]} 37. g3
{[%clk 0:01:39.4]} 37... g4 {[%clk 0:00:28.8]} 38. f4 {[%clk 0:01:37.7]} 38...
b4 {[%clk 0:00:28.6]} 39. Ke3 {[%clk 0:01:35.5]} 39... b3 {[%clk 0:00:27.7]} 40.
Kd3 {[%clk 0:01:35.5]} 40... b2 {[%clk 0:00:27.7]} 41. Kc2 {[%clk 0:01:35.8]}
41... Ke4 {[%clk 0:00:28]} 42. Kxb2 {[%clk 0:01:36.3]} 42... Kxd4 {[%clk
0:00:28.2]} 43. Kc2 {[%clk 0:01:36.6]} 43... Ke3 {[%clk 0:00:27.9]} 44. Kd1
{[%clk 0:01:31.9]} 44... h4 {[%clk 0:00:20.3]} 45. f5 {[%clk 0:01:30.3]} 45...
h3 {[%clk 0:00:20]} 46. f6 {[%clk 0:01:30.4]} 46... Kf3 {[%clk 0:00:19.5]} 47.
f7 {[%clk 0:01:31.3]} 47... Kg2 {[%clk 0:00:19.6]} 48. f8=Q {[%clk 0:01:32.2]}
48... Kxh2 {[%clk 0:00:19.8]} 49. Qf4 {[%clk 0:01:32.5]} 49... Kg2 {[%clk
0:00:19.4]} 50. Qxg4 {[%clk 0:01:33.2]} 50... h2 {[%clk 0:00:19.3]} 51. Qh4
{[%clk 0:01:33.8]} 51... h1=Q+ {[%clk 0:00:18.9]} 52. Qxh1+ {[%clk 0:01:33.7]}
52... Kxh1 {[%clk 0:00:19.8]} 53. g4 {[%clk 0:01:34.6]} 1-0

[Event "*** Titled Tuesday Blitz"]
[Site "Chess.com"]
[Date "2020.05.12"]
[Round "1"]
[White "kakakz"]
[Black "ThunderrPanda"]
[Result "0-1"]
[WhiteElo "2424"]
[BlackElo "2815"]
[TimeControl "180+1"]
[EndTime "10:06:26 PDT"]
[Termination "ThunderrPanda won on time"]

1. d4 {[%clk 0:00:12.7]} 1... Nf6 {[%clk 0:02:59.2]} 2. c4 {[%clk 0:00:12.5]}
2... g6 {[%clk 0:02:59.3]} 3. Nc3 {[%clk 0:00:12.4]} 3... d5 {[%clk 0:02:59.4]}
4. cxd5 {[%clk 0:00:12.3]} 4... Nxd5 {[%clk 0:03:00.3]} 5. e4 {[%clk 0:00:11]}
5... Nxc3 {[%clk 0:03:00.8]} 6. bxc3 {[%clk 0:00:11.9]} 6... Bg7 {[%clk
0:03:01.7]} 7. Nf3 {[%clk 0:00:11.9]} 7... c5 {[%clk 0:03:02.1]} 8. Be3 {[%clk
0:00:12]} 8... Bg4 {[%clk 0:03:01.7]} 9. Qd2 {[%clk 0:00:11.5]} 9... O-O {[%clk
0:03:00.4]} 10. Be2 {[%clk 0:00:11]} 10... Qa5 {[%clk 0:02:49.4]} 11. Rd1 {[%clk
0:00:10.6]} 11... Rd8 {[%clk 0:02:46.8]} 12. O-O {[%clk 0:00:09.8]} 12... Nc6
{[%clk 0:02:42.9]} 13. d5 {[%clk 0:00:04.6]} 13... Bxc3 {[%clk 0:02:39.6]} 14.
Qc2 {[%clk 0:00:04.1]} 14... Bxf3 {[%clk 0:02:29.4]} 15. dxc6 {[%clk 0:00:03.5]}
15... Bxe2 {[%clk 0:02:26.7]} 16. Qxe2 {[%clk 0:00:04.4]} 16... bxc6 {[%clk
0:02:23.7]} 17. Rc1 {[%clk 0:00:03.8]} 17... Bd4 {[%clk 0:02:14.6]} 18. Bg5
{[%clk 0:00:03.6]} 18... Rd7 {[%clk 0:02:14.1]} 19. Rc2 {[%clk 0:00:03.5]} 19...
Rb8 {[%clk 0:02:06.7]} 20. h4 {[%clk 0:00:03.1]} 20... Qb5 {[%clk 0:02:06]} 21.
Qf3 {[%clk 0:00:02.5]} 21... Qa4 {[%clk 0:01:53.4]} 22. Rfc1 {[%clk 0:00:02.4]}
22... Bb2 {[%clk 0:01:31.7]} 23. Rd1 {[%clk 0:00:02.3]} 23... Rxd1+ {[%clk
0:01:15.5]} 24. Qxd1 {[%clk 0:00:03]} 24... Qxe4 {[%clk 0:01:12.7]} 25. Re2
{[%clk 0:00:02.4]} 25... Qd5 {[%clk 0:01:05.9]} 26. Rd2 {[%clk 0:00:02]} 26...
Qxa2 {[%clk 0:01:02.4]} 0-1

[Event "*** Titled Tuesday Blitz"]
[Site "Chess.com"]
[Date "2020.05.12"]
[Round "1"]
[White "doons21"]
[Black "Shivagami"]
[Result "0-1"]
[WhiteElo "2523"]
[BlackElo "2215"]
[TimeControl "180+1"]
[EndTime "10:06:27 PDT"]
[Termination "Shivagami won by resignation"]

1. e4 {[%clk 0:03:00.4]} 1... c5 {[%clk 0:02:58.8]} 2. c3 {[%clk 0:03:00.2]}
2... d5 {[%clk 0:02:56.3]} 3. exd5 {[%clk 0:03:00]} 3... Qxd5 {[%clk 0:02:56.9]}
4. d4 {[%clk 0:03:00.9]} 4... g6 {[%clk 0:02:57.2]} 5. Nf3 {[%clk 0:02:58.5]}
5... Bg7 {[%clk 0:02:56.4]} 6. Be3 {[%clk 0:02:57.5]} 6... Bg4 {[%clk
0:02:55.5]} 7. Be2 {[%clk 0:02:56]} 7... Nc6 {[%clk 0:02:54.8]} 8. h3 {[%clk
0:02:50.1]} 8... Bf5 {[%clk 0:02:48.5]} 9. Na3 {[%clk 0:02:42.2]} 9... cxd4
{[%clk 0:02:36]} 10. Nb5 {[%clk 0:02:41.3]} 10... O-O-O {[%clk 0:02:33.8]} 11.
Nbxd4 {[%clk 0:02:38.1]} 11... Nxd4 {[%clk 0:02:31.1]} 12. Nxd4 {[%clk
0:02:30.9]} 12... Bd7 {[%clk 0:02:18.6]} 13. O-O {[%clk 0:02:18.5]} 13... e5
{[%clk 0:02:10.5]} 14. Bf3 {[%clk 0:02:01.2]} 14... e4 {[%clk 0:02:05.8]} 15.
Be2 {[%clk 0:01:59.2]} 15... f5 {[%clk 0:02:03.2]} 16. c4 {[%clk 0:01:34.6]}
16... Qe5 {[%clk 0:01:57.9]} 17. Nb3 {[%clk 0:01:21.9]} 17... Bc6 {[%clk
0:01:39.1]} 18. Qc2 {[%clk 0:01:19.6]} 18... f4 {[%clk 0:01:35.1]} 19. Bg4+
{[%clk 0:00:57.8]} 19... Kb8 {[%clk 0:01:34]} 20. Bd4 {[%clk 0:00:54.1]} 20...
Rxd4 {[%clk 0:01:27.5]} 21. Nxd4 {[%clk 0:00:55]} 21... Qxd4 {[%clk 0:01:27.9]}
22. Rfd1 {[%clk 0:00:53.3]} 22... Qb6 {[%clk 0:01:26.5]} 23. c5 {[%clk
0:00:44.7]} 23... Qc7 {[%clk 0:01:24.4]} 24. Rd6 {[%clk 0:00:43.4]} 24... Nf6
{[%clk 0:01:19.7]} 25. Rad1 {[%clk 0:00:43.5]} 25... Nxg4 {[%clk 0:01:18.9]} 26.
hxg4 {[%clk 0:00:42.7]} 26... Be5 {[%clk 0:01:14.7]} 27. R6d2 {[%clk 0:00:39.1]}
27... f3 {[%clk 0:01:09.9]} 28. b4 {[%clk 0:00:30.9]} 28... fxg2 {[%clk
0:01:07.2]} 29. Rd6 {[%clk 0:00:16.3]} 29... Bxd6 {[%clk 0:01:04.6]} 30. cxd6
{[%clk 0:00:16.7]} 30... Qd7 {[%clk 0:01:01.8]} 31. a4 {[%clk 0:00:17.1]} 31...
Bxa4 {[%clk 0:00:59.8]} 32. Qc3 {[%clk 0:00:16.5]} 32... Rc8 {[%clk 0:00:57.9]}
33. Qg7 {[%clk 0:00:14.9]} 33... Qxg7 {[%clk 0:00:57.1]} 0-1

[Event "*** Titled Tuesday Blitz"]
[Site "Chess.com"]
[Date "2020.05.12"]
[Round "1"]
[White "PauloCesarCosta_sad"]
[Black "Mfcyryd"]
[Result "0-1"]
[WhiteElo "2198"]
[BlackElo "2537"]
[TimeControl "180+1"]
[EndTime "10:06:27 PDT"]
[Termination "Mfcyryd won on time"]

1. Nf3 {[%clk 0:03:00.9]} 1... Nf6 {[%clk 0:02:58.6]} 2. c4 {[%clk 0:03:00.3]}
2... e6 {[%clk 0:02:56.6]} 3. Nc3 {[%clk 0:03:00.3]} 3... Bb4 {[%clk 0:02:53.2]}
4. g3 {[%clk 0:02:57.4]} 4... O-O {[%clk 0:02:50.8]} 5. Bg2 {[%clk 0:02:57.4]}
5... b6 {[%clk 0:02:48.6]} 6. O-O {[%clk 0:02:55.3]} 6... Bb7 {[%clk 0:02:47.1]}
7. Qc2 {[%clk 0:02:54.5]} 7... d5 {[%clk 0:02:43.1]} 8. d4 {[%clk 0:02:54.5]}
8... Nbd7 {[%clk 0:02:34.5]} 9. cxd5 {[%clk 0:02:54]} 9... exd5 {[%clk
0:02:32.8]} 10. Bf4 {[%clk 0:02:52.8]} 10... a6 {[%clk 0:02:30.8]} 11. Nh4
{[%clk 0:02:14.1]} 11... Rc8 {[%clk 0:02:27.3]} 12. Nf5 {[%clk 0:02:06.1]} 12...
Re8 {[%clk 0:02:25.3]} 13. Rac1 {[%clk 0:01:55.8]} 13... Bf8 {[%clk 0:02:18.1]}
14. e3 {[%clk 0:01:48.2]} 14... h6 {[%clk 0:02:10.5]} 15. h4 {[%clk 0:01:47.3]}
15... b5 {[%clk 0:02:09]} 16. a4 {[%clk 0:01:38.2]} 16... b4 {[%clk 0:02:08]}
17. Nb1 {[%clk 0:01:38.8]} 17... c5 {[%clk 0:02:05.4]} 18. Qd1 {[%clk
0:01:28.2]} 18... c4 {[%clk 0:02:02.9]} 19. Nd6 {[%clk 0:01:20]} 19... Bxd6
{[%clk 0:01:57.4]} 20. Bxd6 {[%clk 0:01:20.9]} 20... a5 {[%clk 0:01:57.9]} 21.
Bf4 {[%clk 0:01:14.7]} 21... Ne4 {[%clk 0:01:54.3]} 22. Qg4 {[%clk 0:01:05.9]}
22... Ndf6 {[%clk 0:01:50.2]} 23. Qe2 {[%clk 0:01:04.3]} 23... Bc6 {[%clk
0:01:49]} 24. f3 {[%clk 0:00:56.5]} 24... Nd6 {[%clk 0:01:47.6]} 25. Bh3 {[%clk
0:00:56.9]} 25... Rb8 {[%clk 0:01:38]} 26. Qd1 {[%clk 0:00:48.7]} 26... Nh5
{[%clk 0:01:22.1]} 27. Be5 {[%clk 0:00:43]} 27... f6 {[%clk 0:01:21.1]} 28. Bxd6
{[%clk 0:00:42.8]} 28... Qxd6 {[%clk 0:01:20.9]} 29. g4 {[%clk 0:00:22.5]} 29...
Qg3+ {[%clk 0:01:05.4]} 30. Bg2 {[%clk 0:00:21.9]} 30... Rxe3 {[%clk 0:01:05.3]}
31. Nd2 {[%clk 0:00:19.1]} 31... Nf4 {[%clk 0:00:59.6]} 0-1

[Event "*** Titled Tuesday Blitz"]
[Site "Chess.com"]
[Date "2020.05.12"]
[Round "1"]
[White "SARGISMV"]
[Black "alishersuleymenov"]
[Result "0-1"]
[WhiteElo "2428"]
[BlackElo "2831"]
[TimeControl "180+1"]
[EndTime "10:06:28 PDT"]
[Termination "alishersuleymenov won on time"]

1. d4 {[%clk 0:03:00.9]} 1... Nf6 {[%clk 0:02:59.8]} 2. Nf3 {[%clk 0:03:00.5]}
2... g6 {[%clk 0:02:59.8]} 3. c4 {[%clk 0:03:00.7]} 3... Bg7 {[%clk 0:02:59.8]}
4. Nc3 {[%clk 0:03:01.6]} 4... O-O {[%clk 0:02:59.8]} 5. Bf4 {[%clk 0:02:59.3]}
5... d6 {[%clk 0:02:48.8]} 6. e3 {[%clk 0:02:58.1]} 6... Nh5 {[%clk 0:02:46.5]}
7. Bg5 {[%clk 0:02:56.5]} 7... Nc6 {[%clk 0:02:45.7]} 8. Be2 {[%clk 0:02:48.2]}
8... h6 {[%clk 0:02:44.6]} 9. Bh4 {[%clk 0:02:47.9]} 9... g5 {[%clk 0:02:45]}
10. Nd2 {[%clk 0:02:47.9]} 10... gxh4 {[%clk 0:02:30.9]} 11. Bxh5 {[%clk
0:02:47.2]} 11... e5 {[%clk 0:02:30.3]} 12. d5 {[%clk 0:02:39]} 12... Ne7 {[%clk
0:02:29.9]} 13. e4 {[%clk 0:02:22.7]} 13... f5 {[%clk 0:02:27.8]} 14. Qe2 {[%clk
0:02:09.2]} 14... fxe4 {[%clk 0:02:23.4]} 15. Ndxe4 {[%clk 0:02:04]} 15... Nf5
{[%clk 0:02:23.2]} 16. O-O {[%clk 0:01:57.6]} 16... Nd4 {[%clk 0:02:19.4]} 17.
Qd3 {[%clk 0:01:57.2]} 17... h3 {[%clk 0:02:18.1]} 18. g3 {[%clk 0:01:32.2]}
18... Bf5 {[%clk 0:02:17.5]} 19. f3 {[%clk 0:01:12.9]} 19... Kh8 {[%clk
0:02:00.6]} 20. Rf2 {[%clk 0:01:09.2]} 20... a6 {[%clk 0:01:56.7]} 21. Raf1
{[%clk 0:01:06.9]} 21... c6 {[%clk 0:01:51.5]} 22. Bg4 {[%clk 0:01:05.3]} 22...
Qd7 {[%clk 0:01:46.2]} 23. Bxf5 {[%clk 0:00:51.5]} 23... Qxf5 {[%clk 0:01:47.1]}
24. Ne2 {[%clk 0:00:39]} 24... Rae8 {[%clk 0:01:40.1]} 25. Nxd4 {[%clk
0:00:33.3]} 25... exd4 {[%clk 0:01:41]} 26. Qb3 {[%clk 0:00:21.2]} 26... Qd7
{[%clk 0:01:16]} 27. Qa3 {[%clk 0:00:07.8]} 27... Rd8 {[%clk 0:01:12.2]} 28. Re2
{[%clk 0:00:06.5]} 28... b5 {[%clk 0:01:11]} 29. dxc6 {[%clk 0:00:05.6]} 29...
Qxc6 {[%clk 0:01:11.6]} 30. cxb5 {[%clk 0:00:06]} 30... axb5 {[%clk 0:01:12.5]}
31. Qd3 {[%clk 0:00:05.7]} 31... Qc4 {[%clk 0:01:10.6]} 32. Rd1 {[%clk
0:00:04.9]} 32... Qxa2 {[%clk 0:01:10.6]} 33. Nf2 {[%clk 0:00:04.4]} 33... Qc4
{[%clk 0:01:09.8]} 34. Nxh3 {[%clk 0:00:04.3]} 34... Rfe8 {[%clk 0:01:09.7]} 35.
Rxe8+ {[%clk 0:00:03.7]} 35... Rxe8 {[%clk 0:01:10.6]} 36. Nf4 {[%clk
0:00:04.3]} 36... Re3 {[%clk 0:01:07.3]} 0-1

[Event "*** Titled Tuesday Blitz"]
[Site "Chess.com"]
[Date "2020.05.12"]
[Round "1"]
[White "Tooweak2slow03"]
[Black "BabyBoss31"]
[Result "1-0"]
[WhiteElo "2627"]
[BlackElo "2305"]
[TimeControl "180+1"]
[EndTime "10:06:28 PDT"]
[Termination "Tooweak2slow03 won on time"]

1. e4 {[%clk 0:03:00.9]} 1... e6 {[%clk 0:02:59.9]} 2. Nf3 {[%clk 0:03:00.9]}
2... d5 {[%clk 0:03:00.8]} 3. e5 {[%clk 0:03:01]} 3... c5 {[%clk 0:02:59.6]} 4.
b4 {[%clk 0:03:01.5]} 4... cxb4 {[%clk 0:02:47.5]} 5. a3 {[%clk 0:03:02]} 5...
bxa3 {[%clk 0:02:42.4]} 6. Bxa3 {[%clk 0:03:02.9]} 6... Bxa3 {[%clk 0:02:38.8]}
7. Nxa3 {[%clk 0:03:03.8]} 7... Bd7 {[%clk 0:02:32.1]} 8. d4 {[%clk 0:03:04.3]}
8... Ne7 {[%clk 0:02:25.7]} 9. Bd3 {[%clk 0:03:03.7]} 9... Qa5+ {[%clk
0:02:07.7]} 10. Kf1 {[%clk 0:03:03.5]} 10... Qb4 {[%clk 0:01:13.4]} 11. g3
{[%clk 0:02:51.9]} 11... a6 {[%clk 0:01:11.9]} 12. Kg2 {[%clk 0:02:50.9]} 12...
Ng6 {[%clk 0:00:36]} 13. h4 {[%clk 0:02:49]} 13... O-O {[%clk 0:00:17.4]} 14.
Ng5 {[%clk 0:02:32.6]} 14... h6 {[%clk 0:00:16]} 15. Nxf7 {[%clk 0:01:36.8]}
15... Rxf7 {[%clk 0:00:16.1]} 16. Bxg6 {[%clk 0:01:35.1]} 16... Rf8 {[%clk
0:00:13.6]} 17. Qd3 {[%clk 0:01:33.8]} 17... Nc6 {[%clk 0:00:11.3]} 18. c3
{[%clk 0:01:33.6]} 18... Qe7 {[%clk 0:00:11]} 19. Nc2 {[%clk 0:01:30.9]} 19...
b5 {[%clk 0:00:11.1]} 20. Ne3 {[%clk 0:01:29.2]} 20... Be8 {[%clk 0:00:10.9]}
21. h5 {[%clk 0:01:26.4]} 21... Bxg6 {[%clk 0:00:10.1]} 22. hxg6 {[%clk
0:01:27.3]} 22... Qg5 {[%clk 0:00:09.4]} 23. f3 {[%clk 0:01:21.9]} 23... Ne7
{[%clk 0:00:09.3]} 24. Kf2 {[%clk 0:01:17.3]} 24... Qxg6 {[%clk 0:00:09.5]} 25.
Qd2 {[%clk 0:01:13.5]} 25... Rf7 {[%clk 0:00:09.6]} 26. Ng2 {[%clk 0:01:12]}
26... Raf8 {[%clk 0:00:09.8]} 27. Nf4 {[%clk 0:01:11.9]} 27... Qg5 {[%clk
0:00:10.2]} 28. Rh5 {[%clk 0:01:08.9]} 28... Rxf4 {[%clk 0:00:08]} 29. Rxg5
{[%clk 0:01:09.2]} 29... Rxf3+ {[%clk 0:00:08.5]} 30. Kg2 {[%clk 0:01:07.3]}
30... hxg5 {[%clk 0:00:06.5]} 31. Qxg5 {[%clk 0:01:08.2]} 31... Rf2+ {[%clk
0:00:06.9]} 32. Kg1 {[%clk 0:01:08.5]} 32... Rc2 {[%clk 0:00:07]} 33. Qxe7
{[%clk 0:01:06.3]} 33... Rff2 {[%clk 0:00:07.2]} 34. Qxe6+ {[%clk 0:01:03.8]}
34... Kh8 {[%clk 0:00:07.8]} 35. Qh3+ {[%clk 0:01:01.1]} 35... Kg8 {[%clk
0:00:07.5]} 36. Rxa6 {[%clk 0:01:01.2]} 1-0